bitfinex/quotes_SOLUSD_20241222
["timestamp","ask_amount","ask_price","bid_price","bid_amount"]
[1734855686711,1.9978,185.4,185.34,28.6975963]
[1734855686915,1.9978,185.4,185.33,28.6975963]
[1734855687336,6.0796,185.41,185.36,28.6975963]
[1734855687527,1.9978,185.45,185.37,28.6975963]
[1734855687905,1.9978,185.45,185.39,28.6975963]
[1734855688206,1.9978,185.45,185.39,17.61120197]
[1734855690414,6.0796,185.46,185.4,17.61120197]
[1734855691234,6.0796,185.46,185.39,17.61120197]
[1734855691409,6.0796,185.46,185.37,37.61120197]
[1734855691617,24.78801624,185.45,185.33,17.61120197]
[1734855691916,24.78801624,185.45,185.29,13.4916]
[1734855692135,24.78801624,185.45,185.32,17.61120197]
[1734855692316,1.9978,185.41,185.3,17.61120197]
[1734855692529,1.9978,185.41,185.28,17.61120197]
[1734855692530,29.856484,185.39,185.28,17.61120197]
[1734855692748,29.856484,185.39,185.26,17.61120197]
[1734855692749,23.776884,185.37,185.26,17.61120197]
[1734855693042,23.776884,185.37,185.22,13.4973]
[1734855693043,23.776884,185.35,185.25,17.61120197]
[1734855693235,1.01177187,185.36,185.25,17.61120197]
[1734855693837,20.0,185.34,185.25,17.61120197]
[1734855694031,20.0,185.34,185.26,28.65862401]
[1734855694629,20.0,185.34,185.25,28.65862401]
[1734855695123,20.0,185.34,185.26,28.65862401]
[1734855695325,23.776884,185.37,185.26,28.65862401]
[1734855696133,6.0796,185.39,185.3,28.65862401]
[1734855696330,6.0796,185.39,185.31,28.65862401]
[1734855697169,6.0796,185.39,185.32,28.65862401]
[1734855697551,6.0796,185.39,185.33,28.65862401]
[1734855698030,6.0796,185.39,185.34,28.65862401]
[1734855699648,6.0796,185.39,185.32,28.65862401]
[1734855700042,1.01143556,185.38,185.29,28.65862401]
[1734855700341,1.01143556,185.38,185.28,28.65862401]
[1734855701786,23.776884,185.37,185.26,28.65862401]
[1734855702072,1.01177153,185.36,185.26,28.65862401]
[1734855702243,1.01177153,185.36,185.21,13.4981]
[1734855702244,23.776884,185.35,185.25,28.65862401]
[1734855702446,1.8715,185.33,185.25,28.65862401]
[1734855702642,1.8715,185.33,185.23,28.65862401]
[1734855702841,2.88341887,185.33,185.23,28.65862401]
[1734855703262,2.88341887,185.33,185.24,28.65862401]
[1734855704367,1.8715,185.33,185.25,28.65862401]
[1734855705143,1.8715,185.33,185.26,28.65862401]
[1734855705350,1.8715,185.33,185.27,28.65862401]
[1734855705763,1.8715,185.33,185.26,28.65862401]
[1734855706261,1.8715,185.33,185.27,28.65862401]
[1734855707066,1.8715,185.33,185.26,28.65862401]
[1734855707647,1.8715,185.33,185.25,28.65862401]
[1734855708539,2.88328791,185.33,185.24,28.65862401]
[1734855708743,1.8715,185.33,185.25,28.65862401]
[1734855708951,1.8715,185.33,185.27,28.65862401]
[1734855710446,1.8715,185.33,185.26,28.65862401]
[1734855711362,1.8715,185.33,185.27,28.65862401]
[1734855711878,1.8715,185.33,185.25,28.65862401]
[1734855712254,2.88335428,185.33,185.25,28.65862401]
[1734855712556,2.88335428,185.33,185.18,13.4996]
[1734855712557,2.88335428,185.33,185.23,28.65862401]
[1734855713547,6.1561,185.31,185.23,28.65862401]
[1734855713770,20.0,185.28,185.2,28.65862401]
[1734855715197,20.0,185.28,185.22,28.65862401]
[1734855715965,20.0,185.28,185.21,28.65862401]
[1734855716165,20.0,185.28,185.22,17.64533678]
[1734855716703,6.1561,185.31,185.23,17.64533678]
[1734855717004,6.1561,185.31,185.24,17.64533678]
[1734855718183,6.3461,185.36,185.29,17.64533678]
[1734855718485,6.3461,185.36,185.31,17.64533678]
[1734855719490,6.3461,185.36,185.3,17.64533678]
[1734855720204,6.3461,185.36,185.3,28.64536593]
[1734855721508,6.3461,185.36,185.32,28.64536593]
[1734855721674,6.3461,185.36,185.31,28.64536593]
[1734855722202,6.3461,185.36,185.28,13.4925]
[1734855722203,6.3461,185.36,185.3,28.64536593]
[1734855722412,6.3461,185.36,185.29,28.64536593]
[1734855723710,6.3461,185.36,185.3,28.64536593]
[1734855727820,1.01166181,185.35,185.26,28.64536593]
[1734855728116,23.776884,185.34,185.23,28.64536593]
[1734855728296,1.01190202,185.33,185.23,28.64536593]
[1734855729135,6.3461,185.36,185.24,28.64536593]
[1734855729303,6.3461,185.36,185.26,28.64536593]
[1734855729505,6.3461,185.36,185.27,28.64536593]
[1734855729824,1.01165333,185.35,185.26,28.64536593]
[1734855730403,23.776884,185.34,185.24,28.64536593]
[1734855730608,1.01192833,185.33,185.23,28.64536593]
[1734855731047,1.01192833,185.33,185.24,28.64536593]
[1734855732141,1.01192833,185.33,185.2,20.0]
[1734855732142,6.3461,185.36,185.27,28.64536593]
[1734855732346,7.3577127,185.36,185.28,28.64536593]
[1734855732546,7.3577127,185.36,185.26,28.64536593]
[1734855732948,23.776884,185.35,185.25,48.64536593]
[1734855733120,1.01181254,185.34,185.25,48.64536593]
[1734855733783,20.0,185.32,185.24,28.64536593]
[1734855734047,23.776884,185.35,185.17,6.2398]
[1734855734048,20.0,185.3,185.21,28.64536593]
[1734855734212,1.01202183,185.29,185.21,28.64536593]
[1734855734411,29.930784,185.28,185.17,28.64536593]
[1734855734718,23.776884,185.26,185.17,28.64536593]
[1734855734914,1.01228355,185.25,185.17,28.64536593]
[1734855735447,2.065,185.22,185.13,28.64536593]
[1734855735616,1.01247638,185.21,185.12,28.64536593]
[1734855735819,29.930784,185.2,185.1,28.64536593]
[1734855736035,1.01263533,185.19,185.09,28.64536593]
[1734855736241,20.0,185.17,185.08,28.64536593]
[1734855736434,29.930784,185.2,185.11,28.64536593]
[1734855736635,1.01253923,185.19,185.11,28.64536593]
[1734855736836,1.01253923,185.19,185.1,28.64536593]
[1734855737145,29.930784,185.2,185.1,28.64536593]
[1734855737861,1.01256096,185.19,185.1,28.64536593]
[1734855738758,23.776884,185.18,185.09,28.64536593]
[1734855738957,1.01275377,185.17,185.08,28.64536593]
[1734855739552,6.1539,185.2,185.1,28.64536593]
[1734855739758,1.01255532,185.19,185.1,28.64536593]
[1734855740133,23.776884,185.18,185.09,28.64536593]
[1734855740459,1.01264796,185.17,185.09,28.64536593]
[1734855741655,6.1539,185.2,185.1,28.64536593]
[1734855741862,6.1539,185.2,185.04,28.64536593]
[1734855741863,6.1539,185.2,185.12,28.64536593]
[1734855742158,6.1539,185.2,185.12,17.6625827]
[1734855743261,6.1539,185.2,185.14,17.6625827]
[1734855743443,6.1539,185.2,185.15,17.6625827]
[1734855746144,6.1539,185.2,185.14,17.6625827]
[1734855746661,6.1539,185.2,185.15,17.6625827]
[1734855747159,6.1539,185.2,185.13,17.6625827]
[1734855747339,6.1539,185.2,185.12,17.6625827]
[1734855747545,1.01251431,185.19,185.1,17.6625827]
[1734855747740,1.01251431,185.19,185.08,17.6625827]
[1734855747944,23.776884,185.18,185.07,17.6625827]
[1734855748140,23.776884,185.16,185.06,17.6625827]
[1734855748351,1.01280742,185.15,185.06,17.6625827]
[1734855749357,1.01280742,185.15,185.07,17.6625827]
[1734855749856,6.6437,185.12,185.02,17.6625827]
[1734855750155,7.65670414,185.12,185.02,17.6625827]
[1734855750752,23.776884,185.08,184.97,17.6625827]
[1734855750964,1.01330482,185.07,184.97,17.6625827]
[1734855751156,20.0,185.09,184.99,17.6625827]
[1734855751671,23.776884,185.11,185.01,17.6625827]
[1734855751862,6.6437,185.12,185.03,17.6625827]
[1734855752166,6.6437,185.12,185.04,17.6625827]
[1734855752671,6.6437,185.12,185.03,17.6625827]
[1734855752872,6.6437,185.12,185.06,17.6625827]
[1734855753077,1.8623,185.14,185.09,17.6625827]
[1734855753256,1.8623,185.14,185.08,17.6625827]
[1734855753444,1.8623,185.14,185.07,17.6625827]
[1734855753648,1.8623,185.14,185.06,17.6625827]
[1734855754377,1.8623,185.14,185.07,17.6625827]
[1734855754751,1.8623,185.14,185.08,17.6625827]
[1734855757076,6.6437,185.17,185.05,13.5097]
[1734855757077,6.6437,185.17,185.09,17.6625827]
[1734855757378,6.6437,185.17,185.1,17.6625827]
[1734855758374,1.9118,185.19,185.13,17.6625827]
[1734855760371,1.9118,185.19,185.14,17.6625827]
[1734855760574,6.0469,185.21,185.15,17.6625827]
[1734855761770,1.9118,185.23,185.17,17.6625827]
[1734855762081,1.9118,185.23,185.18,17.6625827]
[1734855763582,6.0469,185.25,185.18,17.6625827]
[1734855764763,6.0469,185.25,185.16,17.6625827]
[1734855764957,6.0469,185.25,185.16,37.6625827]
[1734855765173,6.0469,185.25,185.17,20.0]
[1734855765376,6.0469,185.25,185.17,37.6625827]
[1734855768883,1.8616,185.27,185.16,20.0]
[1734855769055,1.01196504,185.26,185.16,20.0]
[1734855769263,1.8616,185.27,185.17,17.6625827]
[1734855770182,1.8616,185.27,185.18,31.1628827]
[1734855770395,1.8616,185.27,185.21,17.6625827]
[1734855770760,1.8616,185.27,185.2,17.6625827]
[1734855771070,1.8616,185.27,185.21,17.6625827]
[1734855771654,1.8616,185.27,185.16,20.0]
[1734855771655,6.4417,185.3,185.23,17.6625827]
[1734855772483,6.4417,185.3,185.24,17.6625827]
[1734855773073,6.4417,185.34,185.27,17.6625827]
[1734855773385,6.4417,185.34,185.29,17.6625827]
[1734855773956,1.8616,185.36,185.29,17.6625827]
[1734855774161,6.4417,185.38,185.32,17.6625827]
[1734855774355,6.4417,185.38,185.28,17.6625827]
[1734855774573,2.95795651,185.37,185.22,17.6625827]
[1734855775579,2.95795651,185.37,185.19,15.5193]
[1734855775580,20.0,185.35,185.24,17.6625827]
[1734855775780,20.0,185.35,185.25,17.6625827]
[1734855776181,21.01169961,185.35,185.25,17.6625827]
[1734855776503,20.0,185.35,185.25,17.6625827]
[1734855777489,21.01168761,185.35,185.25,17.6625827]
[1734855777791,1.9464,185.37,185.25,17.6625827]
[1734855777972,1.9464,185.37,185.27,17.6625827]
[1734855778167,1.9464,185.37,185.3,17.6625827]
[1734855778576,1.9464,185.37,185.29,17.6625827]
[1734855779896,1.9464,185.37,185.24,13.4952]
[1734855779897,2.95793159,185.37,185.27,37.6625827]
[1734855780193,1.9464,185.37,185.29,17.6625827]
[1734855780493,1.9464,185.37,185.3,17.6625827]
[1734855781392,1.9464,185.37,185.31,17.6625827]
[1734855781587,1.9464,185.42,185.34,17.6625827]
[1734855781906,1.9464,185.42,185.37,17.6625827]
[1734855782466,1.9464,185.42,185.36,17.6625827]
[1734855783287,8.0196,185.51,185.4,17.6625827]
[1734855783497,8.0196,185.51,185.42,17.6625827]
[1734855783798,1.01075731,185.5,185.38,20.0]
[1734855783987,1.01075731,185.5,185.4,37.6625827]
[1734855784174,8.0196,185.51,185.4,37.6625827]
[1734855784518,1.01087284,185.5,185.39,17.6625827]
[1734855784675,23.776884,185.49,185.38,17.6625827]
[1734855784990,8.0196,185.51,185.41,17.6625827]
[1734855785170,8.0196,185.51,185.42,17.6625827]
[1734855785807,8.0196,185.51,185.43,17.6625827]
[1734855786094,8.0196,185.56,185.46,17.6625827]
[1734855786402,0.6748536,185.6,185.55,17.6625827]
[1734855786596,0.6748536,185.6,185.59,17.6625827]
[1734855787499,0.6748536,185.6,185.58,17.6625827]
[1734855788084,0.6748536,185.6,185.59,28.55712942]
[1734855791189,0.6748536,185.6,185.57,28.55712942]
[1734855792301,0.6748536,185.6,185.54,28.55712942]
[1734855793186,0.6748536,185.6,185.55,28.55712942]
[1734855793590,0.6748536,185.6,185.54,28.55712942]
[1734855793817,0.6748536,185.6,185.52,28.55712942]
[1734855794110,0.6748536,185.6,185.47,13.4788]
[1734855794111,2.6212536,185.6,185.51,28.55712942]
[1734855794527,24.78729154,185.59,185.5,28.55712942]
[1734855794817,6.2026,185.58,185.49,28.55712942]
[1734855794990,1.01052828,185.57,185.49,28.55712942]
[1734855795528,1.01052828,185.57,185.46,28.55712942]
[1734855795695,23.776884,185.54,185.44,28.55712942]
[1734855795887,1.01075707,185.53,185.44,28.55712942]
[1734855796087,20.0,185.55,185.47,28.55712942]
[1734855796339,23.776884,185.53,185.44,28.55712942]
[1734855796531,1.01083625,185.52,185.44,28.55712942]
[1734855796900,23.776884,185.51,185.42,28.55712942]
[1734855797203,21.01089714,185.5,185.42,28.55712942]
[1734855797417,6.2026,185.48,185.38,28.55712942]
[1734855797638,24.78802876,185.47,185.37,28.55712942]
[1734855797938,24.78802876,185.47,185.38,28.55712942]
[1734855798328,24.78802876,185.47,185.39,28.55712942]
[1734855799028,6.2026,185.48,185.41,28.55712942]
[1734855799241,6.2026,185.48,185.44,28.55712942]
[1734855799441,8.2036,185.59,185.46,28.55712942]
[1734855799737,1.01069428,185.58,185.44,28.55712942]
[1734855800557,1.01069428,185.58,185.47,28.55712942]
[1734855800853,8.2036,185.59,185.49,28.55712942]
[1734855801058,8.2036,185.59,185.5,28.55712942]
[1734855801235,1.0104243,185.58,185.5,28.55712942]
[1734855801550,8.2036,185.59,185.5,28.55712942]
[1734855801715,1.01044335,185.58,185.49,28.55712942]
[1734855801922,8.2036,185.59,185.49,28.55712942]
[1734855802537,8.2036,185.59,185.5,28.55712942]
[1734855802921,1.01044649,185.58,185.5,28.55712942]
[1734855803336,1.01044649,185.58,185.49,28.55712942]
[1734855804166,8.2036,185.59,185.51,28.55712942]
[1734855804460,8.2036,185.59,185.52,28.55712942]
[1734855804627,8.2036,185.59,185.51,28.55712942]
[1734855805197,1.01040401,185.58,185.49,28.55712942]
[1734855805911,23.776884,185.57,185.47,28.55712942]
[1734855806209,23.776884,185.57,185.45,20.0]
[1734855806210,8.2036,185.59,185.49,28.55712942]
[1734855806485,1.01049417,185.58,185.48,28.55712942]
[1734855806986,20.0,185.54,185.46,28.55712942]
[1734855807160,1.01067144,185.56,185.46,28.55712942]
[1734855807362,20.0,185.54,185.47,28.55712942]
[1734855807682,20.0,185.54,185.46,28.55712942]
[1734855809270,20.0,185.56,185.47,28.55712942]
[1734855810484,20.0,185.56,185.49,28.55712942]
[1734855811178,23.776884,185.58,185.49,28.55712942]
[1734855811897,23.776884,185.56,185.45,28.55712942]
[1734855812068,1.01069993,185.55,185.45,28.55712942]
[1734855812569,20.0,185.53,185.43,28.55712942]
[1734855812770,8.2036,185.5,185.38,13.4853]
[1734855813077,9.21455575,185.5,185.39,28.55712942]
[1734855813399,8.2036,185.5,185.42,28.55712942]
[1734855813693,1.01079363,185.49,185.4,28.55712942]
[1734855814066,9.21458265,185.5,185.4,28.55712942]
[1734855814398,23.776884,185.49,185.38,28.55712942]
[1734855814689,20.0,185.47,185.37,28.55712942]
[1734855814890,1.01115141,185.46,185.37,28.55712942]
[1734855815094,20.0,185.47,185.38,28.55712942]
[1734855815481,20.0,185.47,185.39,28.55712942]
[1734855816198,23.776884,185.49,185.4,28.55712942]
[1734855816406,8.2036,185.5,185.4,28.55712942]
[1734855816593,1.01096042,185.49,185.4,28.55712942]
[1734855816789,8.2036,185.5,185.42,28.55712942]
[1734855816993,8.2036,185.5,185.44,28.55712942]
[1734855817191,6.1689,185.54,185.46,28.55712942]
[1734855817405,1.01061634,185.53,185.43,28.55712942]
[1734855817710,6.1689,185.54,185.44,28.55712942]
[1734855818204,6.1689,185.54,185.45,28.55712942]
[1734855818607,6.1689,185.54,185.47,28.55712942]
[1734855819199,1.01056724,185.53,185.43,28.55712942]
[1734855819406,1.01056724,185.53,185.41,48.55712942]
[1734855819597,1.01056724,185.53,185.43,28.55712942]
[1734855819795,6.1689,185.54,185.43,28.55712942]
[1734855820094,1.01069672,185.53,185.43,28.55712942]
[1734855820498,0.6748536,185.6,185.51,28.55712942]
[1734855821025,1.01044962,185.59,185.49,28.55712942]
[1734855821709,1.01049807,185.59,185.47,28.55712942]
[1734855822215,23.776884,185.58,185.47,28.55712942]
[1734855822417,23.776884,185.56,185.47,28.55712942]
[1734855822706,23.776884,185.58,185.46,28.55712942]
[1734855822707,21.01061667,185.55,185.46,28.55712942]
[1734855822914,2.0398,185.53,185.44,28.55712942]
[1734855823115,2.0398,185.53,185.46,28.55712942]
[1734855823410,2.0398,185.53,185.45,28.55712942]
[1734855823610,3.05048063,185.53,185.43,28.55712942]
[1734855823818,23.776884,185.52,185.4,28.55712942]
[1734855824017,20.0,185.49,185.4,28.55712942]
[1734855824517,1.01096162,185.48,185.38,28.55712942]
[1734855824699,23.776884,185.45,185.37,28.55712942]
[1734855824897,1.01121565,185.44,185.36,28.55712942]
[1734855825391,2.0398,185.43,185.35,28.55712942]
[1734855825606,21.01133605,185.42,185.33,28.55712942]
[1734855825993,21.01133605,185.42,185.34,28.55712942]
[1734855826295,21.01133605,185.42,185.26,13.4945]
[1734855826296,20.0,185.42,185.35,28.55712942]
[1734855826497,21.01131632,185.42,185.34,28.55712942]
[1734855827105,23.776884,185.41,185.32,28.55712942]
[1734855827306,1.01147623,185.4,185.32,28.55712942]
[1734855828017,1.01147623,185.4,185.31,28.55712942]
[1734855828018,20.0,185.38,185.31,28.55712942]
[1734855828315,7.18049286,185.37,185.3,28.55712942]
[1734855828631,6.1689,185.37,185.31,28.55712942]
[1734855828796,6.1689,185.37,185.32,28.55712942]
[1734855829127,6.1689,185.42,185.36,28.55712942]
[1734855829333,6.1689,185.42,185.37,28.55712942]
[1734855829821,6.1689,185.42,185.38,28.55712942]
[1734855829992,6.1689,185.42,185.37,28.55712942]
[1734855830392,2.0398,185.43,185.37,28.55712942]
[1734855830597,2.15078349,185.54,185.42,28.55712942]
[1734855830598,6.1689,185.54,185.42,28.55712942]
[1734855830812,1.01077094,185.53,185.46,28.55712942]
[1734855830997,6.1689,185.54,185.46,28.55712942]
[1734855831197,6.1689,185.54,185.47,28.55712942]
[1734855831407,6.1689,185.54,185.46,28.55712942]
[1734855831617,1.0106593,185.53,185.45,28.55712942]
[1734855831917,6.1689,185.54,185.45,28.55712942]
[1734855832226,6.1689,185.54,185.47,28.55712942]
[1734855832724,6.1689,185.54,185.46,28.55712942]
[1734855832904,20.0,185.51,185.45,28.55712942]
[1734855833109,1.01073137,185.5,185.43,28.55712942]
[1734855833414,20.0,185.51,185.43,28.55712942]
[1734855834096,1.01086612,185.5,185.43,28.55712942]
[1734855834705,20.0,185.51,185.43,28.55712942]
[1734855835427,20.0,185.51,185.45,28.55712942]
[1734855836207,20.0,185.51,185.44,28.55712942]
[1734855836411,1.01081032,185.5,185.43,28.55712942]
[1734855836709,20.0,185.51,185.43,28.55712942]
[1734855837115,20.0,185.51,185.44,28.55712942]
[1734855837309,20.0,185.51,185.45,28.55712942]
[1734855838016,6.1689,185.54,185.45,28.55712942]
[1734855838639,20.0,185.51,185.45,28.55712942]
[1734855839311,6.1689,185.54,185.44,28.55712942]
[1734855839516,23.776884,185.52,185.44,28.55712942]
[1734855839905,1.01082081,185.51,185.44,28.55712942]
[1734855840108,23.776884,185.53,185.44,28.55712942]
[1734855840301,1.01078787,185.52,185.44,28.55712942]
[1734855840804,20.0,185.5,185.44,28.55712942]
[1734855846532,6.1689,185.54,185.46,28.55712942]
[1734855846737,6.1689,185.54,185.48,28.55712942]
[1734855846935,6.1689,185.54,185.5,28.55712942]
[1734855847115,2.0398,185.55,185.51,28.55712942]
[1734855847317,6.5088,185.58,185.52,28.55712942]
[1734855847517,2.0452,185.59,185.54,28.55712942]
[1734855847757,0.6748536,185.6,185.56,28.55712942]
[1734855848114,0.6748536,185.6,185.49,50.02062079]
[1734855848314,0.6748536,185.6,185.58,17.58062079]
[1734855848610,0.6748536,185.6,185.5,2.0035]
[1734855848611,0.6748536,185.6,185.59,17.58062079]
[1734855848818,0.6748536,185.6,185.59,41.35750479]
[1734855849718,0.6748536,185.6,185.59,17.58062079]
[1734855849943,0.6748536,185.6,185.59,41.35750479]
[1734855850198,0.6748536,185.6,185.59,52.32423666]
[1734855852323,5.36e-05,185.6,185.59,84.88972666]
[1734855852528,1.68446452,185.78,185.59,84.88972666]
[1734855852529,6.5088,185.77,185.62,20.0]
[1734855852722,6.5088,185.77,185.7,28.54735266]
[1734855852923,6.5088,185.77,185.71,28.54735266]
[1734855853451,6.5088,185.77,185.74,28.54735266]
[1734855853950,2.7200536,185.78,185.74,28.54735266]
[1734855854152,2.7200536,185.78,185.72,28.54735266]
[1734855854533,2.7200536,185.78,185.71,28.54735266]
[1734855854730,2.7200536,185.78,185.7,28.54735266]
[1734855855140,2.7200536,185.78,185.72,28.54735266]
[1734855855853,2.7200536,185.78,185.71,28.54735266]
[1734855856565,2.7200536,185.78,185.69,28.54735266]
[1734855856566,3.7293867,185.78,185.69,28.54735266]
[1734855857044,20.0,185.74,185.67,28.54735266]
[1734855858962,20.0,185.74,185.68,28.54735266]
[1734855859671,20.0,185.74,185.67,28.54735266]
[1734855860471,7.36377778,185.73,185.66,28.54735266]
[1734855860784,7.36377778,185.73,185.63,28.54735266]
[1734855861074,6.3542,185.73,185.66,28.54735266]
[1734855861378,6.3542,185.73,185.69,28.54735266]
[1734855861745,6.3542,185.73,185.68,28.54735266]
[1734855863147,6.3542,185.73,185.67,28.54735266]
[1734855863670,6.3542,185.73,185.66,28.54735266]
[1734855863889,1.00968304,185.72,185.65,28.54735266]
[1734855864047,6.3542,185.73,185.65,28.54735266]
[1734855864385,20.0,185.7,185.64,28.54735266]
[1734855864596,1.00979407,185.69,185.62,28.54735266]
[1734855864753,2.06,185.68,185.61,28.54735266]
[1734855865071,2.06,185.68,185.62,28.54735266]
[1734855865662,1.00985125,185.67,185.6,28.54735266]
[1734855865977,1.0100832,185.67,185.61,28.54735266]
[1734855866180,1.0100832,185.67,185.6,28.54735266]
[1734855866381,23.776884,185.66,185.57,28.54735266]
[1734855866680,6.1468,185.62,185.55,28.54735266]
[1734855866885,6.1468,185.62,185.57,28.54735266]
[1734855867046,6.1468,185.67,185.61,28.54735266]
[1734855867255,6.1468,185.67,185.63,28.54735266]
[1734855867878,6.1468,185.67,185.62,28.54735266]
[1734855868578,6.1468,185.67,185.63,28.54735266]
[1734855868779,6.1468,185.67,185.62,28.54735266]
[1734855869180,6.1468,185.67,185.61,28.54735266]
[1734855869383,6.1468,185.67,185.62,28.54735266]
[1734855870087,6.1468,185.67,185.61,28.54735266]
[1734855870287,6.1468,185.67,185.59,28.54735266]
[1734855871084,1.00999928,185.66,185.58,28.54735266]
[1734855871265,6.1468,185.67,185.6,28.54735266]
[1734855871456,6.1468,185.67,185.59,28.54735266]
[1734855871778,1.0100204,185.66,185.58,28.54735266]
[1734855871986,6.1468,185.67,185.6,28.54735266]
[1734855872143,6.1468,185.67,185.62,28.54735266]
[1734855872350,2.06,185.68,185.62,28.54735266]
[1734855872703,2.06,185.68,185.63,28.54735266]
[1734855873788,2.06,185.68,185.62,28.54735266]
[1734855874276,2.06,185.68,185.63,28.54735266]
[1734855874584,6.1468,185.71,185.64,28.54735266]
[1734855874887,6.1468,185.71,185.65,28.54735266]
[1734855875497,6.1468,185.71,185.59,23.776884]
[1734855875498,6.1468,185.71,185.64,28.54735266]
[1734855875653,6.1468,185.71,185.63,28.54735266]
[1734855875862,6.1468,185.71,185.65,28.54735266]
[1734855876978,6.1468,185.71,185.63,28.54735266]
[1734855877995,20.0,185.68,185.54,2.0087]
[1734855878164,23.776884,185.7,185.6,28.54735266]
[1734855878364,6.1468,185.71,185.62,28.54735266]
[1734855878786,1.00974345,185.7,185.61,28.54735266]
[1734855879091,6.1468,185.71,185.61,28.54735266]
[1734855879481,1.00978925,185.7,185.6,28.54735266]
[1734855879669,20.0,185.68,185.59,28.54735266]
[1734855879865,1.00997441,185.67,185.57,28.54735266]
[1734855880284,21.9863,185.63,185.54,28.54735266]
[1734855880492,6.3141,185.61,185.53,28.54735266]
[1734855880681,20.0,185.58,185.5,28.54735266]
[1734855881012,20.0,185.58,185.48,28.54735266]
[1734855881201,20.0,185.58,185.42,6.5684]
[1734855881202,1.01049918,185.57,185.46,28.54735266]
[1734855881495,23.776884,185.56,185.45,28.54735266]
[1734855881703,1.01072207,185.55,185.45,28.54735266]
[1734855882005,20.0,185.53,185.43,28.54735266]
[1734855882178,1.01082758,185.52,185.42,28.54735266]
[1734855882373,1.01082758,185.52,185.4,28.54735266]
[1734855882374,20.0,185.48,185.4,28.54735266]
[1734855882573,21.01105178,185.47,185.39,28.54735266]
[1734855882903,20.0,185.47,185.39,28.54735266]
[1734855883069,20.0,185.48,185.41,28.54735266]
[1734855884814,8.3004,185.51,185.43,28.54735266]
[1734855885513,1.01084972,185.5,185.42,28.54735266]
[1734855886092,8.3004,185.51,185.45,28.54735266]
[1734855886297,1.01091041,185.55,185.47,28.54735266]
[1734855886699,1.01091041,185.55,185.37,13.4863]
[1734855886700,1.01091041,185.55,185.44,28.54735266]
[1734855887615,20.0,185.53,185.44,28.54735266]
[1734855887913,1.01085416,185.52,185.44,28.54735266]
[1734855888819,20.0,185.48,185.41,28.54735266]
[1734855889122,20.0,185.48,185.4,28.54735266]
[1734855889492,1.01102905,185.47,185.4,28.54735266]
[1734855891589,1.01102905,185.47,185.39,28.54735266]
[1734855892026,6.3141,185.46,185.39,28.54735266]
[1734855892234,20.0,185.43,185.36,28.54735266]
[1734855892589,20.0,185.43,185.35,28.54735266]
[1734855894134,1.01128257,185.42,185.33,28.54735266]
[1734855894305,1.01128257,185.42,185.32,28.54735266]
[1734855894498,1.01128257,185.42,185.3,28.54735266]
[1734855894823,20.0,185.38,185.31,28.54735266]
[1734855895398,20.0,185.39,185.31,28.54735266]
[1734855895600,8.2502,185.37,185.3,28.54735266]
[1734855895910,1.01164034,185.36,185.29,28.54735266]
[1734855896315,1.01164034,185.36,185.24,13.496]
[1734855896316,20.0,185.34,185.27,28.54735266]
[1734855896499,1.01178215,185.33,185.24,28.54735266]
[1734855896702,20.0,185.34,185.27,28.54735266]
[1734855897004,20.0,185.34,185.28,28.54735266]
[1734855898801,20.0,185.34,185.17,20.0]
[1734855898802,1.01177213,185.33,185.17,20.0]
[1734855899007,1.01177213,185.33,185.2,28.54735266]
[1734855899500,23.776884,185.32,185.2,28.54735266]
[1734855899812,20.0,185.27,185.16,28.54735266]
[1734855900115,1.01231115,185.26,185.14,29.22220626]
[1734855900720,20.0,185.22,185.14,29.22220626]
[1734855901219,1.0124643,185.21,185.14,0.6748536]
[1734855902323,20.0,185.22,185.14,29.22220626]
[1734855902517,1.01247934,185.21,185.14,0.6748536]
[1734855903027,20.0,185.22,185.14,0.6748536]
[1734855903410,1.01246495,185.21,185.14,0.6748536]
[1734855905127,20.0,185.17,185.14,0.6748536]
[1734855906808,1.01262242,185.16,185.14,0.6748536]
[1734855908430,20.0,185.17,185.14,0.6748536]
[1734855910126,1.6073,185.19,185.14,0.6748536]
[1734855910332,6.2639,185.2,185.14,29.22220626]
[1734855910745,6.2639,185.2,185.14,0.6748536]
[1734855910939,0.77730264,185.19,185.14,0.6748536]
[1734855911605,20.0,185.17,185.14,0.6748536]
[1734855911937,1.01272222,185.16,185.14,0.6748536]
[1734855912103,20.0,185.17,185.14,0.6748536]
[1734855912309,1.01271419,185.16,185.14,0.6748536]
[1734855913637,20.0,185.17,185.14,0.6748536]